bitfinex/quotes_SOLUSD_20251202
["timestamp","ask_amount","ask_price","bid_price","bid_amount"]
[1764695926735,25.68789841,140.18,140.14,7.21916913]
[1764695927141,0.72,140.18,140.14,7.92916913]
[1764695927469,0.72,140.18,140.14,0.71]
[1764695927648,0.72,140.18,140.14,7.92916913]
[1764695928465,7.13419419,140.17,140.14,7.92916913]
[1764695929464,7.96,140.19,140.16,7.21916913]
[1764695929965,7.96,140.19,140.17,7.21916913]
[1764695930160,7.96,140.19,140.16,7.92916913]
[1764695930462,3.7236926,140.23,140.17,10.21472849]
[1764695930640,33.62077591,140.22,140.18,3.08062909]
[1764695930841,33.62077591,140.22,140.17,3.08062909]
[1764695931051,0.72,140.21,140.17,12.60057401]
[1764695932037,32.90077591,140.22,140.18,3.79062909]
[1764695932361,3.7236926,140.23,140.22,8.80994492]
[1764695932544,3.7236926,140.23,140.22,3.08062909]
[1764695932741,3.7236926,140.23,140.21,3.08062909]
[1764695932942,3.7236926,140.23,140.22,3.08062909]
[1764695933355,3.7236926,140.23,140.22,3.79062909]
[1764695934073,3.7236926,140.23,140.22,3.08062909]
[1764695934284,166.62,140.3,140.23,8.80994492]
[1764695934484,619.6,140.36,140.23,16.02103018]
[1764695934485,7.21108526,140.28,140.23,16.02103018]
[1764695934651,3.72302043,140.26,140.22,16.02103018]
[1764695935179,3.72302043,140.26,140.24,7.21108526]
[1764695935548,15.15108526,140.32,140.21,25.17569115]
[1764695935775,3.72248469,140.28,140.24,7.21108526]
[1764695935973,10.85130116,140.28,140.24,7.21108526]
[1764695936190,0.72,140.27,140.23,7.21108526]
[1764695936495,11.65374803,140.27,140.21,7.92108526]
[1764695936657,4.44266277,140.27,140.22,8.80994492]
[1764695936974,0.72,140.26,140.19,7.92108526]
[1764695937179,7.21108526,140.24,140.19,7.92108526]
[1764695937363,15.17108526,140.24,140.19,7.92108526]
[1764695937681,15.89108526,140.24,140.19,7.92108526]
[1764695937847,7.96,140.24,140.21,7.21108526]
[1764695938054,7.96,140.25,140.21,7.21108526]
[1764695938367,7.96,140.25,140.22,7.21108526]
[1764695938950,7.84974163,140.26,140.22,7.21108526]
[1764695939150,10.85190705,140.27,140.23,7.21108526]
[1764695939382,18.79190705,140.27,140.23,7.92108526]
[1764695939552,18.79190705,140.27,140.24,7.21108526]
[1764695939754,18.79190705,140.27,140.24,7.92108526]
[1764695940182,3.72266277,140.27,140.26,7.21108526]
[1764695940480,8.66,140.33,140.26,16.02103018]
[1764695940693,3.72185018,140.3,140.25,8.80994492]
[1764695940988,8.66,140.33,140.29,7.21108526]
[1764695941189,17.74891775,140.35,140.32,7.21108526]
[1764695941366,3.72108426,140.33,140.28,8.80994492]
[1764695941561,10.93216952,140.33,140.28,7.21108526]
[1764695941768,12.40108426,140.33,140.28,7.92108526]
[1764695942301,7.21108526,140.3,140.16,7.13470319]
[1764695942473,7.21108526,140.3,140.24,7.21108526]
[1764695942668,7.21108526,140.28,140.23,7.92108526]
[1764695943066,0.72,140.32,140.27,7.21108526]
[1764695943267,0.72,140.32,140.28,7.21108526]
[1764695943477,7.21108526,140.31,140.26,7.21108526]
[1764695943873,0.72,140.3,140.25,7.21108526]
[1764695944180,0.72,140.3,140.24,9.51994492]
[1764695944181,7.1280918,140.29,140.24,9.51994492]
[1764695944379,7.21108526,140.28,140.21,0.71]
[1764695944582,7.93108526,140.28,140.22,7.21108526]
[1764695944881,7.93108526,140.28,140.15,42.81127363]
[1764695944882,7.21108526,140.25,140.17,0.71]
[1764695945085,15.17108526,140.24,140.18,7.21108526]
[1764695945393,7.96,140.24,140.19,7.21108526]
[1764695945579,15.89108526,140.24,140.18,7.21108526]
[1764695946089,7.96,140.24,140.21,7.21108526]
[1764695946586,15.08961642,140.26,140.23,7.21108526]
[1764695947091,15.08961642,140.26,140.22,7.21108526]
[1764695947289,15.08961642,140.26,140.22,7.92108526]
[1764695948292,15.80961642,140.26,140.22,7.21108526]
[1764695948479,7.12961642,140.26,140.22,7.92108526]
[1764695948684,15.17108526,140.29,140.24,7.21108526]
[1764695948881,15.89108526,140.29,140.24,7.21108526]
[1764695949196,7.93108526,140.28,140.23,7.92108526]
[1764695949874,7.12910814,140.27,140.23,7.92108526]
[1764695950496,7.12910814,140.27,140.23,0.71]
[1764695950691,7.12910814,140.27,140.23,7.92108526]
[1764695950877,15.0601934,140.27,140.21,7.13204159]
[1764695951197,32.88296377,140.27,140.22,7.21108526]
[1764695951377,7.93108526,140.26,140.2,14.34368416]
[1764695951582,7.21108526,140.23,140.16,0.71]
[1764695951783,7.21108526,140.22,140.16,0.71]
[1764695951982,14.34324416,140.21,140.16,7.92108526]
[1764695952294,7.21108526,140.2,140.15,7.21108526]
[1764695952594,23.01324416,140.21,140.15,7.92108526]
[1764695952795,23.01324416,140.21,140.16,7.21108526]
[1764695952997,7.96,140.21,140.16,0.71]
[1764695953183,7.96,140.21,140.17,0.71]
[1764695953384,7.92108526,140.22,140.17,7.92108526]
[1764695953610,7.21108526,140.2,140.15,7.92108526]
[1764695953904,7.13419419,140.17,140.12,15.05764124]
[1764695954105,7.13378965,140.18,140.14,7.21108526]
[1764695954479,7.13378965,140.18,140.14,7.92108526]
[1764695954680,7.13378965,140.18,140.14,0.71]
[1764695954873,7.13378965,140.18,140.11,0.71]
[1764695955086,7.13378965,140.18,140.1,8.80994492]
[1764695955087,0.71,140.17,140.13,7.21108526]
[1764695955294,8.67,140.17,140.13,7.21108526]
[1764695955609,15.88108526,140.17,140.12,0.71]
[1764695955903,7.13521227,140.15,140.11,7.21108526]
[1764695956074,7.84480831,140.16,140.12,7.21108526]
[1764695956282,7.84472995,140.16,140.12,7.21108526]
[1764695956490,7.13472995,140.16,140.12,7.92108526]
[1764695956893,0.71,140.16,140.11,14.34831704]
[1764695957085,15.17108526,140.17,140.12,7.92108526]
[1764695957299,7.13478789,140.16,140.12,7.92108526]
[1764695958105,15.09425249,140.17,140.13,15.0573159]
[1764695958303,7.96,140.17,140.14,7.21108526]
[1764695958487,7.96,140.18,140.12,0.71]
[1764695958688,15.17108526,140.18,140.13,7.21108526]
[1764695958997,7.21108526,140.17,140.12,0.71]
[1764695959200,7.92108526,140.17,140.12,0.71]
[1764695959506,22.3047904,140.18,140.13,7.21108526]
[1764695959798,15.09370514,140.18,140.14,7.21108526]
[1764695960184,15.80370514,140.18,140.14,7.21108526]
[1764695960384,15.80370514,140.18,140.13,15.05695321]
[1764695961006,7.84370514,140.18,140.13,15.05695321]
[1764695961207,15.80370514,140.18,140.14,0.71]
[1764695961382,23.0147904,140.18,140.13,15.05695321]
[1764695961578,7.21108526,140.16,140.06,0.2]
[1764695961806,7.21108526,140.12,140.08,0.71]
[1764695961982,15.17108526,140.13,140.08,7.92108526]
[1764695962182,0.71,140.19,140.08,0.71]
[1764695962384,7.13270608,140.2,140.16,7.21108526]
[1764695962585,7.13222665,140.21,140.18,7.21108526]
[1764695962802,8.67,140.22,140.14,8.80994492]
[1764695963085,23.01293473,140.22,140.17,7.21108526]
[1764695963306,7.21108526,140.2,140.15,7.92108526]
[1764695963491,14.34421482,140.2,140.15,15.05623606]
[1764695963694,7.92108526,140.19,140.14,14.34672809]
[1764695964205,8.67,140.18,140.14,14.34672809]
[1764695964715,8.67,140.18,140.14,7.21108526]
[1764695964899,8.67,140.18,140.15,7.21108526]
[1764695965790,15.80395097,140.18,140.15,7.21108526]
[1764695966007,7.92108526,140.17,140.11,7.13713425]
[1764695966200,7.92108526,140.17,140.11,14.34821951]
[1764695966403,5.52702586,140.17,140.11,11.95416011]
[1764695966599,0.71,140.17,140.12,4.81702586]
[1764695966798,0.71,140.16,140.12,4.81702586]
[1764695967388,7.84477157,140.16,140.11,7.13713425]
[1764695967699,7.84477157,140.16,140.12,4.81702586]
[1764695968209,5.52702586,140.15,140.09,12.66528329]
[1764695968393,8.67,140.14,140.08,7.13857377]
[1764695968714,8.67,140.14,140.1,12.30375004]
[1764695969510,7.13482449,140.16,140.12,12.30375004]
[1764695969714,7.96,140.17,140.13,12.30375004]
[1764695969914,27.39811795,140.17,140.11,0.71]
[1764695970116,7.96,140.17,140.13,12.30375004]
[1764695970299,7.96,140.17,140.14,12.30375004]
[1764695970497,7.96,140.17,140.13,12.30375004]
[1764695970700,7.96,140.17,140.12,12.30375004]
[1764695970907,8.67,140.17,140.12,12.30375004]
[1764695971137,7.96,140.17,140.14,12.30375004]
[1764695971305,7.96,140.17,140.13,12.30375004]
[1764695971513,15.80438301,140.17,140.13,19.439977]
[1764695971695,15.80438301,140.17,140.11,0.71]
[1764695971696,4.43575728,140.16,140.11,13.01375004]
[1764695972027,4.43575728,140.16,140.12,12.30375004]
[1764695972796,4.43575728,140.16,140.11,7.84717753]
[1764695972996,4.43575728,140.16,140.11,20.15092757]
[1764695973235,3.72575728,140.16,140.14,12.30375004]
[1764695973523,3.72575728,140.16,140.13,12.30375004]
[1764695973733,3.72575728,140.16,140.13,19.43986305]
[1764695974018,3.72575728,140.16,140.14,12.30375004]
[1764695974432,10.86046098,140.16,140.13,0.72767938]
[1764695974606,10.86046098,140.16,140.13,0.02767938]
[1764695974923,3.72575728,140.16,140.14,13.00375004]
[1764695975322,3.72575728,140.16,140.14,0.7]
[1764695975519,3.72575728,140.16,140.14,12.30375004]
[1764695975706,3.72575728,140.16,140.14,13.00375004]
[1764695975898,3.72575728,140.16,140.15,13.00375004]
[1764695977013,3.72575728,140.16,140.15,0.7]
[1764695977208,3.72575728,140.16,140.15,13.00375004]
[1764695977412,3.72575728,140.16,140.14,19.43943319]
[1764695977921,3.72575728,140.16,140.14,12.30375004]
[1764695978227,3.72575728,140.16,140.14,20.1393543]
[1764695978411,3.72575728,140.16,140.15,12.30375004]
[1764695978823,3.72575728,140.16,140.14,7.83560426]
[1764695979021,3.72575728,140.16,140.15,12.30375004]
[1764695979217,3.72575728,140.16,140.14,7.83568434]
[1764695979422,3.72575728,140.16,140.15,12.30375004]
[1764695979830,3.72575728,140.16,140.15,20.13896231]
[1764695980905,3.72575728,140.16,140.13,0.72767938]
[1764695981231,10.86048798,140.16,140.13,13.03142942]
[1764695981433,11.57048798,140.16,140.13,0.02767938]
[1764695981840,8.67,140.15,140.13,0.02767938]
[1764695982530,7.96,140.15,140.13,12.33142942]
[1764695982732,7.96,140.15,140.13,0.02767938]
[1764695982932,0.71,140.14,140.13,0.02767938]
[1764695984733,15.09568268,140.15,140.13,0.02767938]
[1764695985037,15.80568268,140.15,140.13,0.02767938]
[1764695985417,15.80568268,140.15,140.11,12.30375004]
[1764695985618,0.71,140.14,140.1,13.01375004]
[1764695986141,12.30375004,140.13,140.07,13.01375004]
[1764695986328,20.26375004,140.12,140.07,13.01375004]
[1764695986730,0.71,140.11,140.06,12.50375004]
[1764695986936,7.13775874,140.1,140.07,12.30375004]
[1764695987135,7.96,140.1,140.08,12.30375004]
[1764695987320,7.96,140.1,140.08,13.01375004]
[1764695987521,7.96,140.1,140.06,8.04977796]
[1764695987824,7.13695401,140.12,140.08,12.30375004]
[1764695988037,7.96,140.11,140.08,12.30375004]
[1764695988237,7.96,140.11,140.08,13.01375004]
[1764695988843,7.96,140.11,140.09,12.30375004]
[1764695989054,15.09726865,140.11,140.08,7.13869289]
[1764695989230,15.09726865,140.11,140.08,20.15244293]
[1764695989752,15.09726865,140.11,140.08,13.01375004]
[1764695989923,7.13726865,140.11,140.08,13.01375004]
[1764695990121,12.30375004,140.09,140.06,0.2]
[1764695990323,7.96,140.09,140.06,0.91]
[1764695990544,0.71,140.08,140.06,0.2]
[1764695990848,7.13877784,140.08,140.06,0.2]
[1764695991137,7.96,140.09,140.06,0.91]
[1764695991350,7.96,140.09,140.06,13.21375004]
[1764695991641,27.4021029,140.09,140.06,0.2]
[1764695991836,15.09835286,140.09,140.06,0.2]
[1764695992037,15.80835286,140.09,140.06,0.2]
[1764695992341,28.1121029,140.09,140.06,0.2]
[1764695992647,12.30375004,140.07,140.06,0.2]
[1764695993147,20.15303753,140.07,140.06,0.2]
[1764695993847,7.84928749,140.07,140.06,0.2]
[1764695994062,20.15303753,140.07,140.06,0.2]
[1764695994927,7.84928749,140.07,140.06,0.2]
[1764695995127,20.15303753,140.07,140.06,0.2]
[1764695995347,0.71,140.12,140.06,13.21375004]
[1764695995530,7.96,140.11,140.07,12.30375004]
[1764695995955,7.96,140.11,140.07,13.01375004]
[1764695996262,12.30375004,140.1,140.06,0.2]
[1764695996456,13.01375004,140.1,140.06,0.2]
[1764695996622,0.71,140.09,140.06,0.2]
[1764695996830,7.96,140.08,140.06,0.2]
[1764695997770,15.09887473,140.08,140.06,0.2]
[1764695998061,7.96,140.08,140.06,0.2]
[1764695998631,7.1379284,140.1,140.06,20.35354441]
[1764695998859,7.96,140.09,140.06,20.35354441]
[1764695999050,7.96,140.09,140.06,13.21375004]
[1764695999449,7.96,140.09,140.06,8.04948092]
[1764695999648,15.09826905,140.09,140.06,0.91]
[1764695999829,15.09826905,140.09,140.06,20.35354634]
[1764695999830,7.96,140.09,140.06,20.35354634]
[1764696000157,7.13678876,140.12,140.08,12.30375004]
[1764696000350,7.96,140.11,140.09,12.30375004]
[1764696000539,7.96,140.11,140.07,0.71]
[1764696000747,7.96,140.11,140.07,13.01375004]
[1764696000958,7.96,140.11,140.08,12.30375004]
[1764696001262,7.13637493,140.13,140.09,12.30375004]
[1764696001476,7.96,140.13,140.1,20.15149567]
[1764696001660,0.71,140.22,140.12,12.30375004]
[1764696001988,7.1306332,140.24,140.12,8.80994492]
[1764696001989,12.30375004,140.18,140.12,8.80994492]
[1764696002171,3.72559046,140.21,140.16,12.30375004]
[1764696002356,7.96,140.22,140.17,0.71]
[1764696002535,3.7249815,140.2,140.17,13.01375004]
[1764696002860,7.96,140.19,140.15,13.01375004]
[1764696003060,8.67,140.19,140.11,17.47994492]
[1764696003270,7.96,140.18,140.16,12.30375004]
[1764696003565,11.6849815,140.2,140.16,12.30375004]
[1764696003774,31.83181522,140.2,140.15,12.30375004]
[1764696004145,31.83181522,140.2,140.15,13.01375004]
[1764696004668,31.12143895,140.2,140.16,0.71]
[1764696004966,49.66310799,140.2,140.16,0.71]
[1764696005167,12.30375004,140.19,140.15,0.71]
[1764696005347,49.66310799,140.2,140.15,13.01375004]
[1764696005749,12.30375004,140.16,140.11,0.71]
[1764696005962,12.30375004,140.16,140.11,13.01375004]
[1764696006169,8.67,140.17,140.11,13.01375004]
[1764696006358,20.97375004,140.17,140.12,12.30375004]
[1764696006758,12.30375004,140.16,140.11,0.71]
[1764696006944,13.01375004,140.16,140.11,0.71]
[1764696007145,0.71,140.16,140.11,13.01375004]
[1764696007363,7.96,140.17,140.11,0.71]
[1764696007684,7.96,140.17,140.13,12.30375004]
[1764696008053,15.09465408,140.17,140.13,12.30375004]
[1764696008262,27.39840412,140.17,140.12,20.15033497]
[1764696008601,105.21,140.19,140.13,13.01375004]
[1764696008787,7.96,140.17,140.13,13.01375004]
[1764696009093,20.26375004,140.17,140.16,0.02767938]
[1764696009474,7.96,140.17,140.16,0.02767938]
[1764696010095,16.02873154,140.2,140.16,13.04142942]
[1764696010302,16.02873154,140.2,140.17,12.30375004]
[1764696010303,3.7249815,140.2,140.17,12.30375004]
[1764696010789,3.7249815,140.2,140.18,12.30375004]
[1764696010997,3.7249815,140.2,140.19,12.30375004]
[1764696011182,3.7249815,140.2,140.19,13.01375004]
[1764696011360,3.7249815,140.2,140.17,12.30375004]
[1764696011564,3.7249815,140.2,140.17,0.71]
[1764696011765,3.7249815,140.2,140.17,13.01375004]
[1764696012270,3.7249815,140.2,140.17,12.30375004]
[1764696012467,3.7249815,140.2,140.17,0.69]
[1764696012670,20.93375004,140.19,140.16,0.02767938]
[1764696012986,12.30375004,140.18,140.16,0.02767938]
[1764696013172,8.63,140.19,140.16,0.02767938]
[1764696013491,20.93375004,140.19,140.16,0.02767938]
[1764696014191,15.09355884,140.19,140.16,0.02767938]
[1764696014502,28.06730888,140.19,140.16,0.02767938]
[1764696014686,27.39730888,140.19,140.16,0.02767938]
[1764696014881,12.30375004,140.18,140.16,0.02767938]
[1764696015188,12.97375004,140.18,140.16,0.02767938]
[1764696015391,12.30375004,140.18,140.16,0.02767938]
[1764696015970,12.30375004,140.17,140.16,0.02767938]
[1764696016267,19.43794423,140.17,140.16,0.02767938]
[1764696017277,15.09351178,140.19,140.16,0.02767938]
[1764696017482,19.43726182,140.19,140.16,0.02767938]
[1764696017687,7.96,140.18,140.16,0.02767938]
[1764696017977,20.26375004,140.18,140.16,0.02767938]
[1764696018166,7.96,140.18,140.16,0.02767938]
[1764696018365,15.09368669,140.18,140.16,0.02767938]
[1764696018989,15.09368669,140.18,140.16,0.71767938]
[1764696019380,15.09368669,140.18,140.16,0.02767938]
[1764696019586,7.13368669,140.18,140.16,0.02767938]
[1764696019898,7.1331764,140.19,140.16,0.02767938]
[1764696020095,3.7249815,140.2,140.18,12.30375004]
[1764696020300,3.7249815,140.2,140.19,12.30375004]
[1764696020485,7.96,140.24,140.19,12.99375004]
[1764696020673,3.72390587,140.21,140.2,12.30375004]
[1764696020869,7.96,140.24,140.2,12.99375004]
[1764696021275,3.72379707,140.21,140.2,12.99375004]
[1764696021476,7.96,140.24,140.2,12.99375004]
[1764696021692,3.72378258,140.21,140.2,12.99375004]
[1764696021888,7.96,140.24,140.21,0.69]
[1764696022299,7.96,140.24,140.22,12.30375004]
[1764696022478,3.72363619,140.23,140.21,12.99375004]
[1764696022681,3.72363619,140.23,140.22,12.30375004]
[1764696022892,3.72363619,140.23,140.22,12.99375004]
[1764696024077,3.72363619,140.23,140.22,20.1254003]
[1764696024820,3.72363619,140.23,140.22,28.93534522]
[1764696024988,12.97375004,140.29,140.22,20.1254003]
[1764696025187,3.72259299,140.26,140.23,0.69]
[1764696025390,6.34,140.3,140.23,0.69]
[1764696025391,0.67,140.32,140.25,12.30375004]
[1764696025714,3.7223172,140.27,140.26,12.30375004]
[1764696026006,20.26375004,140.31,140.26,12.30375004]
[1764696026209,3.72227974,140.27,140.26,0.69]
[1764696026409,7.79758374,140.3,140.26,0.69]
[1764696026707,3.72234043,140.27,140.25,12.30375004]
[1764696026906,0.67,140.29,140.25,0.69]
[1764696027076,37.92029315,140.3,140.25,12.99375004]
[1764696027397,45.88029315,140.3,140.25,12.99375004]
[1764696027595,0.67,140.29,140.22,7.13144829]
[1764696027807,16.02631671,140.29,140.25,0.69]
[1764696028192,3.72256667,140.29,140.25,12.99375004]
[1764696028377,3.72256667,140.29,140.25,7.90081733]
[1764696029301,3.72256667,140.29,140.26,7.90081733]
[1764696029513,3.72256667,140.29,140.27,7.90081733]
[1764696029692,3.72256667,140.29,140.28,7.21081733]
[1764696029888,3.72256667,140.29,140.28,7.90081733]
[1764696030795,3.72256667,140.29,140.28,0.69]
[1764696030994,3.72256667,140.29,140.26,7.90081733]
[1764696031325,3.72256667,140.29,140.26,7.21081733]
[1764696031489,3.72256667,140.29,140.27,0.69]
[1764696031685,3.72256667,140.29,140.28,7.21081733]
[1764696032204,3.72256667,140.29,140.28,7.90081733]
[1764696032607,3.72256667,140.29,140.28,15.02941727]
[1764696033509,3.72256667,140.29,140.28,0.69]
[1764696033813,3.72256667,140.29,140.28,7.90081733]
[1764696034018,3.72256667,140.29,140.26,7.78948507]
[1764696034189,3.72256667,140.29,140.27,7.21081733]
[1764696034388,3.72256667,140.29,140.27,7.87081733]
[1764696034588,3.72256667,140.29,140.27,0.66]
[1764696034893,3.72256667,140.29,140.27,7.87081733]
[1764696035085,3.72256667,140.29,140.27,14.99991808]
[1764696035288,3.72256667,140.29,140.27,7.87081733]
[1764696035502,3.72256667,140.29,140.27,0.66]
[1764696035710,18.06166069,140.29,140.24,0.66]
[1764696035895,3.72256667,140.29,140.25,0.66]
[1764696036213,18.06158251,140.29,140.24,7.87081733]
[1764696036587,4.37256667,140.29,140.25,7.21081733]
[1764696036796,11.50068403,140.29,140.25,7.87081733]
[1764696037299,3.72256667,140.29,140.25,0.66]
[1764696037500,3.72256667,140.29,140.25,7.87081733]
[1764696037815,3.6949583,140.29,140.25,7.87081733]
[1764696038700,10.82307549,140.29,140.25,7.87081733]
[1764696039417,10.82307549,140.29,140.25,15.0009378]
[1764696039605,10.82307549,140.29,140.25,14.3409378]
[1764696039809,3.6949583,140.29,140.27,7.21081733]
[1764696040012,3.6949583,140.29,140.28,7.21081733]
[1764696040398,3.6949583,140.29,140.28,7.87081733]
[1764696040598,3.6949583,140.29,140.28,14.99941727]
[1764696042502,3.6949583,140.29,140.28,7.87081733]
[1764696042823,3.6949583,140.29,140.28,0.66]
[1764696043113,3.6949583,140.29,140.28,7.87081733]
[1764696043418,3.6949583,140.29,140.28,14.99941727]
[1764696043632,15.06565879,140.34,140.28,14.99941727]
[1764696043918,3.72144933,140.3,140.29,7.21081733]
[1764696044125,40.77035669,140.34,140.29,7.21081733]
[1764696044422,3.72153786,140.3,140.29,7.21081733]
[1764696044605,0.68,140.33,140.29,7.21081733]
[1764696044801,3.72153877,140.3,140.29,7.89081733]
[1764696045122,15.06575692,140.34,140.3,0.68]
[1764696045295,3.72131004,140.32,140.31,7.21081733]
[1764696045489,3.72131004,140.32,140.3,7.89081733]
[1764696045690,3.72131004,140.32,140.3,0.68]
[1764696045900,3.72131004,140.32,140.31,7.89081733]
[1764696046396,3.72131004,140.32,140.31,0.68]
[1764696046597,3.72131004,140.32,140.31,7.89081733]
[1764696047302,17.74891775,140.35,140.31,15.01789309]
[1764696047504,3.72053178,140.34,140.33,7.21081733]
[1764696048122,3.72053178,140.34,140.32,7.89081733]
[1764696048422,3.72053178,140.34,140.31,7.21081733]
[1764696048725,3.72053178,140.34,140.31,7.89081733]
[1764696049025,10.84629482,140.34,140.31,7.89081733]
[1764696049553,0.68,140.33,140.29,7.21081733]
[1764696049702,0.68,140.33,140.29,7.89081733]
[1764696049905,7.89081733,140.33,140.27,15.74895419]
[1764696050218,0.68,140.33,140.28,7.89081733]
[1764696050399,7.89081733,140.33,140.28,7.89081733]
[1764696050600,7.21081733,140.32,140.27,7.21081733]
[1764696050799,7.89081733,140.32,140.26,15.02028261]
[1764696051003,7.12707576,140.31,140.26,15.02028261]
[1764696051204,19.55134911,140.34,140.29,7.21081733]
[1764696051410,12.34053178,140.34,140.29,7.21081733]
[1764696051609,12.34053178,140.34,140.29,7.89081733]
[1764696051827,0.68,140.33,140.29,7.89081733]
[1764696052427,7.12627991,140.33,140.3,7.89081733]
[1764696052599,7.12627991,140.33,140.29,7.1278539]
[1764696052600,7.12627991,140.33,140.29,7.89081733]
[1764696052797,0.68,140.32,140.28,7.21081733]
[1764696052999,7.89081733,140.32,140.27,7.21081733]
[1764696053227,7.89081733,140.32,140.27,7.89081733]
[1764696053424,7.89081733,140.31,140.27,0.68]
[1764696053618,7.89081733,140.31,140.26,14.34041437]
[1764696053813,7.89081733,140.3,140.24,0.68]
[1764696054018,7.21081733,140.29,140.24,7.89081733]
[1764696054328,7.89081733,140.29,140.24,7.89081733]
[1764696054523,7.21081733,140.26,140.22,0.68]
[1764696054726,7.21081733,140.25,140.2,7.81244891]
[1764696054928,7.21081733,140.25,140.2,15.02326624]
[1764696055230,7.89081733,140.25,140.21,0.68]
[1764696055421,7.89081733,140.25,140.21,7.89081733]
[1764696055422,0.68,140.25,140.21,7.89081733]
[1764696055812,14.34061607,140.26,140.21,15.02266129]
[1764696056009,15.02061607,140.26,140.21,15.02266129]
[1764696056212,15.06920719,140.27,140.23,7.21081733]
[1764696056406,7.94,140.27,140.24,7.21081733]
[1764696056909,7.94,140.27,140.24,7.89081733]
[1764696058226,0.68,140.3,140.26,7.21081733]
[1764696058427,8.62,140.29,140.25,7.21081733]
[1764696058630,7.21081733,140.28,140.23,7.89081733]
[1764696058877,7.89081733,140.28,140.23,7.21081733]
[1764696059128,7.21081733,140.28,140.23,0.68]
[1764696059714,7.21081733,140.28,140.23,7.89081733]
[1764696060234,15.06831407,140.29,140.25,7.21081733]
[1764696060830,22.2791314,140.29,140.24,14.34145053]
[1764696061138,22.2791314,140.29,140.24,7.8106332]
[1764696061435,15.06831407,140.29,140.24,15.02145053]
[1764696061739,22.2791314,140.29,140.24,15.02145053]
[1764696061911,14.3391314,140.29,140.24,15.02145053]
[1764696062435,7.21081733,140.32,140.28,7.21081733]
[1764696062738,3.72053178,140.34,140.28,7.21081733]
[1764696062739,7.12729034,140.31,140.28,7.21081733]
[1764696063342,7.12675906,140.32,140.28,7.89081733]
[1764696063635,7.12675906,140.32,140.28,15.01940918]
[1764696064038,7.12675906,140.32,140.29,7.21081733]
[1764696064645,7.12675906,140.32,140.28,7.89081733]
[1764696065142,7.12675906,140.32,140.29,7.21081733]
[1764696065432,7.12675906,140.32,140.28,7.21081733]
[1764696065636,7.21081733,140.3,140.25,15.15081733]
[1764696065813,7.94,140.32,140.26,7.21081733]
[1764696066016,3.72053178,140.34,140.26,0.68]
[1764696066224,7.21081733,140.33,140.28,7.21081733]
[1764696066830,7.21081733,140.32,140.26,7.21081733]
[1764696067140,7.21081733,140.3,140.25,7.21081733]
[1764696067323,15.15081733,140.32,140.26,7.21081733]
[1764696067721,7.12758374,140.3,140.25,7.13011732]
[1764696068025,7.12758374,140.3,140.25,7.21081733]
[1764696068232,7.12758374,140.3,140.25,7.89081733]
[1764696068442,17.81824837,140.31,140.28,7.21081733]
[1764696068443,7.12725964,140.31,140.28,7.21081733]
[1764696068649,3.72053178,140.34,140.3,7.21081733]
[1764696068941,10.84616102,140.34,140.3,7.21081733]
[1764696069642,7.21081733,140.32,140.27,7.21081733]
[1764696069848,7.12707576,140.31,140.27,7.21081733]
[1764696070139,7.12707576,140.31,140.28,7.21081733]
[1764696070550,7.12707576,140.31,140.28,0.68]
[1764696070922,7.12707576,140.31,140.28,7.89081733]
[1764696071144,7.12707576,140.31,140.28,0.68]
[1764696071319,14.33687733,140.33,140.28,7.89081733]
[1764696071728,7.12606,140.33,140.29,7.21081733]
[1764696071950,14.33687733,140.33,140.29,0.66]
[1764696072946,7.21081733,140.32,140.27,0.66]
[1764696073151,7.21081733,140.3,140.25,15.81081733]
[1764696073542,7.21081733,140.31,140.26,7.87081733]
[1764696073940,7.12758374,140.3,140.26,7.87081733]
[1764696074439,14.33840107,140.3,140.26,0.66]
[1764696074748,7.12758374,140.3,140.27,7.87081733]
[1764696074931,14.33808917,140.31,140.26,7.21081733]
[1764696075129,24.94496124,140.31,140.27,7.21081733]
[1764696075331,7.12727184,140.31,140.28,7.21081733]
[1764696075645,7.12672307,140.32,140.28,7.87081733]
[1764696075820,24.94192959,140.33,140.29,7.87081733]
[1764696076022,7.12606,140.33,140.29,7.87081733]
[1764696076225,18.7863046,140.34,140.3,7.87081733]
[1764696076448,3.72053178,140.34,140.32,7.21081733]
[1764696076651,3.72053178,140.34,140.31,0.66]
[1764696076854,3.72053178,140.34,140.31,7.87081733]
[1764696077154,3.72053178,140.34,140.32,7.87081733]
[1764696077449,10.84621386,140.34,140.28,15.06859018]
[1764696077755,10.84621386,140.34,140.31,7.21081733]
[1764696078047,10.84621386,140.34,140.3,7.87081733]